bitfinex/quotes_SOLUSD_20241127
["timestamp","ask_amount","ask_price","bid_price","bid_amount"]
[1732745239571,12.4007532,240.17,240.1,12.8760337]
[1732745240449,12.4007532,240.16,240.1,20.4752805]
[1732745240672,12.4007532,240.24,240.11,20.0]
[1732745240673,12.4007532,240.15,240.11,20.0]
[1732745240973,12.4007532,240.24,240.11,20.0]
[1732745240974,12.4007532,240.17,240.11,20.0]
[1732745241176,12.4007532,240.16,240.1,20.4752805]
[1732745241475,12.4007532,240.14,240.1,0.4752805]
[1732745242460,12.4007532,240.15,240.1,0.4752805]
[1732745242658,12.4007532,240.14,240.1,0.4752805]
[1732745243069,12.4007532,240.15,240.1,0.4752805]
[1732745243263,12.4007532,240.16,240.1,0.4752805]
[1732745245367,12.4007532,240.17,240.1,0.4752805]
[1732745246061,12.4007532,240.16,240.1,0.4752805]
[1732745249860,12.4007532,240.14,240.1,0.4752805]
[1732745250063,12.4007532,240.12,240.1,0.4752805]
[1732745250271,12.4007532,240.11,240.1,0.4752805]
[1732745251258,12.4007532,240.11,239.94,4.1676]
[1732745251259,51.3733372,240.11,239.94,12.4007532]
[1732745251458,51.3733372,240.11,239.97,12.4007532]
[1732745251459,12.4007532,240.05,239.97,12.4007532]
[1732745251658,12.4007532,240.02,239.95,12.4007532]
[1732745251859,12.4007532,240.03,239.95,12.4007532]
[1732745252169,23.776884,240.1,239.96,12.4007532]
[1732745252170,12.4007532,240.04,239.96,12.4007532]
[1732745252481,6.2753,240.15,240.01,12.4007532]
[1732745252787,12.4007532,240.09,240.02,13.23172101]
[1732745253469,6.2753,240.15,240.04,12.4007532]
[1732745253470,12.4007532,240.12,240.04,12.4007532]
[1732745253870,18.01189144,240.17,240.05,12.4007532]
[1732745253871,12.4007532,240.13,240.05,12.4007532]
[1732745254389,12.4007532,240.13,240.06,12.4007532]
[1732745254692,12.4007532,240.15,240.07,12.4007532]
[1732745254856,12.4007532,240.14,240.06,35.3705532]
[1732745255058,12.4007532,240.13,240.06,35.3705532]
[1732745255760,12.4007532,240.14,240.06,35.3705532]
[1732745256569,12.4007532,240.12,240.06,22.9698]
[1732745256775,12.4007532,240.1,240.02,12.4007532]
[1732745257259,12.4007532,240.08,240.01,22.9698]
[1732745259178,12.4007532,240.1,240.03,12.4007532]
[1732745259379,12.4007532,240.09,240.01,35.3705532]
[1732745260599,12.4007532,240.11,240.03,12.4007532]
[1732745261690,12.4007532,240.09,240.01,35.3705532]
[1732745262183,12.4007532,240.08,240.0,63.0254727]
[1732745262779,12.4007532,240.06,240.0,50.6247195]
[1732745264398,12.4007532,240.08,240.0,63.0254727]
[1732745264575,12.4007532,240.08,240.0,12.4007532]
[1732745264997,12.4007532,240.06,240.01,20.0]
[1732745266882,12.4007532,240.09,240.01,32.4007532]
[1732745267400,12.4007532,240.11,240.03,12.4007532]
[1732745268182,15.036,240.17,240.08,12.4007532]
[1732745268493,12.4007532,240.17,240.09,12.4007532]
[1732745270196,12.4007532,240.15,240.1,20.0]
[1732745270398,12.4007532,240.17,240.09,12.4007532]
[1732745273499,12.4007532,240.18,240.11,12.4007532]
[1732745273903,12.4007532,240.2,240.11,12.4007532]
[1732745274197,15.036,240.23,240.13,12.4007532]
[1732745274198,12.4007532,240.22,240.13,12.4007532]
[1732745275204,12.4007532,240.22,240.14,12.4007532]
[1732745275597,11.36004052,240.22,240.14,12.4007532]
[1732745276513,11.36004052,240.22,240.15,12.4007532]
[1732745277107,11.36004052,240.22,240.14,12.4007532]
[1732745277498,11.36004052,240.22,240.13,50.6247195]
[1732745277499,12.4007532,240.2,240.13,50.6247195]
[1732745277712,12.4007532,240.18,240.13,20.0]
[1732745277912,12.4007532,240.19,240.13,20.0]
[1732745278291,12.4007532,240.2,240.13,32.4007532]
[1732745279318,12.4007532,240.16,240.11,50.6247195]
[1732745279611,12.4007532,240.14,240.12,20.0]
[1732745279806,12.4007532,240.14,240.06,63.0254727]
[1732745280187,12.4007532,240.15,240.08,12.4007532]
[1732745281007,12.3402509,240.25,240.11,12.4007532]
[1732745281208,12.3402509,240.25,240.09,0.83067739]
[1732745281209,12.4007532,240.17,240.12,20.0]
[1732745281389,12.4007532,240.17,240.1,12.4007532]
[1732745281587,12.4007532,240.17,240.1,63.0254727]
[1732745281989,12.4007532,240.18,240.11,12.4007532]
[1732745284598,12.4007532,240.2,240.12,63.0254727]
[1732745284791,12.4007532,240.2,240.13,12.4007532]
[1732745286009,12.4007532,240.23,240.18,20.0]
[1732745286311,12.4007532,240.23,240.16,83.0254727]
[1732745286519,12.3402509,240.25,240.19,12.4007532]
[1732745287401,24.7410041,240.25,240.19,20.0]
[1732745287797,12.3402509,240.25,240.19,32.4007532]
[1732745288518,12.3402509,240.25,240.23,20.0]
[1732745289508,12.3402509,240.25,240.22,12.4007532]
[1732745289821,12.3402509,240.25,240.23,20.0]
[1732745290295,12.4007532,240.32,240.27,20.0]
[1732745290494,15.3546,240.34,240.27,20.0]
[1732745290495,27.7553532,240.34,240.27,20.0]
[1732745290731,12.4007532,240.36,240.29,20.0]
[1732745290897,12.4007532,240.36,240.28,12.4007532]
[1732745291216,12.4007532,240.34,240.29,20.0]
[1732745291602,12.4007532,240.31,240.23,50.6247195]
[1732745291806,12.4007532,240.31,240.23,32.4007532]
[1732745292419,12.4007532,240.31,240.25,20.0]
[1732745292614,12.4007532,240.31,240.23,32.4007532]
[1732745293401,12.4007532,240.31,240.25,12.4007532]
[1732745293713,12.4007532,240.33,240.25,63.0254727]
[1732745294102,12.4007532,240.33,240.28,20.0]
[1732745294508,12.4007532,240.33,240.25,63.0254727]
[1732745295806,12.4007532,240.34,240.26,12.4007532]
[1732745296214,12.4007532,240.3,240.22,63.0254727]
[1732745296416,12.4007532,240.28,240.2,63.0254727]
[1732745296622,12.4007532,240.26,240.18,63.0254727]
[1732745296926,12.4007532,240.24,240.18,12.4007532]
[1732745297129,12.4007532,240.24,240.16,69.3228727]
[1732745297834,12.4007532,240.22,240.16,50.6247195]
[1732745298127,16.2343,240.3,240.12,12.4007532]
[1732745298128,12.4007532,240.2,240.12,12.4007532]
[1732745298334,12.4007532,240.18,240.12,50.6247195]
[1732745298508,12.4007532,240.2,240.13,12.4007532]
[1732745299031,12.4007532,240.15,240.0,50.6247195]
[1732745299221,22.5417,240.19,240.01,12.4007532]
[1732745299222,12.4007532,240.08,240.01,12.4007532]
[1732745299422,12.4007532,240.08,240.02,50.6247195]
[1732745299621,12.4007532,240.08,240.01,12.4007532]
[1732745300339,12.4007532,240.09,240.01,12.4007532]
[1732745300637,12.4007532,240.09,240.01,63.0254727]
[1732745300937,12.4007532,240.09,240.03,12.4007532]
[1732745301460,12.4007532,240.12,240.04,12.4007532]
[1732745301738,22.5417,240.19,240.05,63.0254727]
[1732745301739,12.4007532,240.13,240.05,63.0254727]
[1732745303433,12.4007532,240.17,240.1,12.4007532]
[1732745303738,12.4007532,240.15,240.07,12.4007532]
[1732745303912,12.4007532,240.16,240.08,12.4007532]
[1732745304116,12.4007532,240.12,240.05,50.6247195]
[1732745304319,12.4007532,240.15,240.07,12.4007532]
[1732745305034,12.4007532,240.16,240.08,12.4007532]
[1732745305330,12.4007532,240.16,240.09,12.4007532]
[1732745306116,12.4007532,240.18,240.12,20.0]
[1732745306334,12.4007532,240.2,240.12,12.4007532]
[1732745306519,12.4007532,240.22,240.14,12.4007532]
[1732745307116,12.4007532,240.22,240.15,12.4007532]
[1732745307440,16.3869,240.25,240.17,63.0254727]
[1732745307441,12.4007532,240.25,240.17,63.0254727]
[1732745307809,12.4007532,240.25,240.18,0.83035734]
[1732745308134,12.4007532,240.24,240.18,0.83035734]
[1732745308337,12.4007532,240.22,240.17,50.6247195]
[1732745308916,12.4007532,240.19,240.14,50.6247195]
[1732745309128,12.4007532,240.16,240.11,50.6247195]
[1732745309334,23.776884,240.23,240.08,71.9383195]
[1732745309536,12.4007532,240.15,240.08,21.3136]
[1732745309838,12.4007532,240.16,240.09,12.4007532]
[1732745310020,12.4007532,240.16,240.09,63.0254727]
[1732745311025,12.4007532,240.24,240.09,63.0254727]
[1732745311026,12.4007532,240.15,240.09,50.6247195]
[1732745311334,12.4007532,240.11,240.09,50.6247195]
[1732745311634,12.4007532,240.13,240.05,63.0254727]
[1732745312933,12.4007532,240.11,240.05,50.6247195]
[1732745314140,16.3869,240.18,240.05,50.6247195]
[1732745314141,12.4007532,240.08,240.05,50.6247195]
[1732745314316,6.3103,240.17,240.01,12.4007532]
[1732745314317,12.4007532,240.06,240.01,50.6247195]
[1732745314644,12.4007532,240.12,239.98,50.6247195]
[1732745314645,12.4007532,240.04,239.98,50.6247195]
[1732745314831,12.4007532,240.04,239.97,50.6247195]
[1732745315540,12.4007532,240.0,239.95,50.6247195]
[1732745319145,12.4007532,240.02,239.95,50.6247195]
[1732745319350,12.4007532,240.04,239.97,12.4007532]
[1732745319547,12.4007532,240.06,239.97,63.0254727]
[1732745320639,12.4007532,240.06,239.99,12.4007532]
[1732745320841,12.4007532,240.08,240.01,12.4007532]
[1732745321830,12.4007532,240.09,240.02,13.2316462]
[1732745322036,12.4007532,240.11,240.03,12.4007532]
[1732745322547,12.4007532,240.12,240.05,12.4007532]
[1732745323049,12.4007532,240.13,240.05,12.4007532]
[1732745324633,12.4007532,240.12,240.05,12.4007532]
[1732745324845,12.4007532,240.12,240.04,63.85631369]
[1732745325229,12.4007532,240.11,240.04,63.85631369]
[1732745325429,12.4007532,240.12,240.05,74.4016035]
[1732745326223,12.4007532,240.12,240.05,50.6247195]
[1732745326456,12.4007532,240.11,240.03,63.0254727]
[1732745326825,12.4007532,240.11,240.04,12.4007532]
[1732745327346,12.4007532,240.11,240.03,63.0254727]
[1732745327527,12.4007532,240.11,240.04,12.4007532]
[1732745329250,12.4007532,240.09,240.02,63.0254727]
[1732745329756,12.4007532,240.08,240.02,50.6247195]
[1732745329922,12.4007532,240.09,240.01,63.0254727]
[1732745331839,12.4007532,240.07,239.99,12.4007532]
[1732745332145,12.4007532,240.03,239.97,50.6247195]
[1732745332350,12.4007532,240.03,239.95,63.0254727]
[1732745332725,12.4007532,240.01,239.95,50.6247195]
[1732745333356,12.4007532,239.99,239.95,50.6247195]
[1732745333652,12.4007532,239.99,239.93,50.6247195]
[1732745337032,12.4007532,240.01,239.93,63.0254727]
[1732745337347,12.4007532,240.01,239.94,12.4007532]
[1732745337657,12.4007532,240.02,239.95,12.4007532]
[1732745337861,12.4007532,240.03,239.95,12.4007532]
[1732745338228,28.5434532,240.05,239.97,12.4007532]
[1732745338428,16.1427,240.05,239.98,13.23194324]
[1732745338647,28.5434532,240.05,239.98,13.23194324]
[1732745339241,16.1427,240.05,239.98,13.23194324]
[1732745339754,12.4007532,240.08,240.01,12.4007532]
[1732745339958,12.4007532,240.08,240.02,0.83095499]
[1732745340132,12.4007532,240.09,240.02,13.23170819]
[1732745340662,6.5871,240.12,240.05,12.4007532]
[1732745340663,12.4007532,240.12,240.05,12.4007532]
[1732745340959,12.4007532,240.11,240.04,63.0254727]
[1732745342854,15.8478,240.16,240.04,50.6247195]
[1732745343082,12.4007532,240.08,240.02,12.4007532]
[1732745343243,12.4007532,240.09,240.01,32.4007532]
[1732745343559,12.4007532,240.09,240.02,0.83093414]
[1732745344865,12.4007532,240.05,239.99,63.0254727]
[1732745345037,12.4007532,240.05,239.99,50.6247195]
[1732745346372,12.4007532,240.07,239.99,63.85652146]
[1732745346540,12.4007532,240.08,240.0,12.4007532]
[1732745347040,12.4007532,240.06,239.99,63.85652146]
[1732745347365,12.4007532,240.07,239.99,63.85652146]
[1732745347659,12.4007532,240.08,240.01,12.4007532]
[1732745349069,12.4007532,240.11,240.03,12.4007532]
[1732745349260,12.4007532,240.1,240.03,12.4007532]
[1732745349441,12.4007532,240.11,240.04,13.2316366]
[1732745349644,12.4007532,240.12,240.05,12.4007532]
[1732745350456,12.4007532,240.12,240.04,12.4007532]
[1732745350837,12.4007532,240.08,240.03,0.83080827]
[1732745351049,15.8478,240.16,239.99,0.83081458]
[1732745351050,12.4007532,240.05,239.99,0.83081458]
[1732745351860,12.4007532,240.06,239.99,13.23156778]
[1732745352065,12.4007532,240.06,239.99,0.83081458]
[1732745352439,12.4007532,240.06,239.99,13.23156778]
[1732745355575,12.4007532,240.06,239.99,0.83081458]
[1732745359451,12.4007532,240.04,239.99,0.83081458]
[1732745359746,12.4007532,240.04,239.96,63.0254727]
[1732745359941,12.4007532,240.02,239.95,12.4007532]
[1732745360168,12.4007532,240.0,239.94,51.45575813]
[1732745360673,1.65736289,240.13,239.96,12.4007532]
[1732745360841,12.4007532,240.05,239.98,12.4007532]
[1732745361037,12.4007532,240.05,239.99,0.83104312]
[1732745361662,12.4007532,240.06,239.99,13.23179632]
[1732745361871,12.4007532,240.09,240.02,12.4007532]
[1732745362250,12.4007532,240.1,240.03,13.23168603]
[1732745362448,12.4007532,240.1,240.03,0.83093283]
[1732745362939,12.4007532,240.1,240.03,13.23168603]
[1732745363266,12.4007532,240.11,240.03,63.85640553]
[1732745363964,12.4007532,240.12,240.04,12.4007532]
[1732745364151,12.4007532,240.09,240.03,51.45565233]
[1732745364471,12.4007532,240.09,240.03,50.6247195]
[1732745365564,12.4007532,240.09,240.03,63.0254727]
[1732745367748,12.4007532,240.09,240.03,63.8563536]
[1732745368870,12.4007532,240.11,240.03,63.8563536]
[1732745369668,12.4007532,240.13,240.05,12.4007532]
[1732745369874,12.4007532,240.13,240.06,0.83074984]
[1732745370171,12.4007532,240.15,240.07,12.4007532]
[1732745370863,1.67430366,240.22,240.14,12.4007532]
[1732745371068,1.67430366,240.22,240.16,12.4007532]
[1732745371246,1.67430366,240.22,240.15,51.45517168]
[1732745371441,1.67430366,240.22,240.15,50.6247195]
[1732745371646,12.4007532,240.23,240.15,50.6247195]
[1732745372064,15.0043,240.3,240.16,13.23127452]
[1732745372065,12.4007532,240.25,240.16,13.23127452]
[1732745372266,12.4007532,240.23,240.16,13.23127452]
[1732745372468,12.4007532,240.21,240.14,12.4007532]
[1732745372643,12.4007532,240.19,240.12,63.0254727]
[1732745373052,12.4007532,240.21,240.12,63.0254727]
[1732745373257,12.4007532,240.21,240.14,12.4007532]
[1732745373677,12.4007532,240.23,240.16,63.0254727]
[1732745373968,12.4007532,240.25,240.16,63.0254727]
[1732745374171,12.4007532,240.25,240.16,63.85585335]
[1732745375856,12.4007532,240.25,240.18,12.4007532]
[1732745380265,7.98203033,240.25,240.17,58.60674983]
[1732745380865,15.0043,240.3,240.17,58.60674983]
[1732745381063,7.98203033,240.26,240.17,58.60674983]
[1732745381770,15.9066,240.36,240.23,7.98203033]
[1732745381978,7.98203033,240.34,240.25,7.98203033]
[1732745382169,7.98203033,240.34,240.27,7.98203033]
[1732745382368,7.98203033,240.34,240.26,0.83007676]
[1732745382576,7.98203033,240.34,240.26,51.45479626]
[1732745383273,7.98203033,240.3,240.24,16.3613]
[1732745384178,12.46708927,240.29,240.24,16.3613]
[1732745387379,12.46708927,240.31,240.24,16.3613]
[1732745388664,12.46708927,240.29,240.24,16.3613]
[1732745389581,12.46708927,240.27,240.2,12.46708927]
[1732745389782,12.46708927,240.24,240.19,66.0555195]
[1732745390989,12.46708927,240.23,240.19,66.0555195]
[1732745391166,12.46708927,240.2,240.15,56.6496195]
[1732745391373,12.46708927,240.2,240.15,6.0249]
[1732745392585,12.46708927,240.21,240.15,6.0249]
[1732745394287,12.46708927,240.22,240.15,18.49198927]
[1732745397196,12.46708927,240.21,240.16,23.776884]
[1732745397497,12.46708927,240.2,240.16,23.776884]
[1732745397674,12.46708927,240.21,240.16,23.776884]
[1732745399597,12.46708927,240.22,240.16,23.776884]
[1732745400692,12.46708927,240.29,240.21,12.46708927]
[1732745400877,12.46708927,240.29,240.22,12.46708927]
[1732745402584,12.46708927,240.33,240.26,12.46708927]
[1732745402903,12.46708927,240.32,240.24,86.86869277]
[1732745403480,12.46708927,240.31,240.24,86.86869277]
[1732745404984,12.46708927,240.32,240.25,12.46708927]
[1732745405207,12.46708927,240.32,240.26,23.776884]
[1732745405692,12.46708927,240.33,240.26,36.24397327]
[1732745406586,12.46708927,240.35,240.27,12.46708927]
[1732745406785,22.3077,240.39,240.29,12.46708927]
[1732745406786,12.46708927,240.36,240.29,12.46708927]
[1732745406994,12.46708927,240.38,240.3,36.24397327]
[1732745407504,12.46708927,240.36,240.29,12.46708927]
[1732745407687,12.46708927,240.36,240.3,23.776884]
[1732745408482,12.46708927,240.32,240.25,69.14080877]
[1732745408693,12.46708927,240.3,240.25,56.6737195]
[1732745411783,5.0,240.41,240.25,56.6737195]
[1732745411983,12.46708927,240.32,240.25,18.51608927]
[1732745412602,12.46708927,240.35,240.28,12.46708927]
[1732745412985,12.46708927,240.35,240.26,74.4016035]
[1732745413189,12.46708927,240.34,240.28,12.46708927]
[1732745413595,12.46708927,240.34,240.14,1.66768653]
[1732745413596,12.46708927,240.29,240.18,50.6247195]
[1732745413796,12.46708927,240.23,240.16,85.10040877]
[1732745414084,12.46708927,240.22,240.16,72.6333195]
[1732745415295,12.46708927,240.22,240.17,23.776884]
[1732745415616,12.46708927,240.23,240.17,23.776884]
[1732745416710,12.46708927,240.22,240.17,23.776884]
[1732745416912,12.46708927,240.22,240.16,22.0086]
[1732745417814,12.46708927,240.17,240.1,73.2804195]
[1732745418017,12.46708927,240.14,240.07,12.46708927]
[1732745418224,12.46708927,240.14,240.07,63.09180877]
[1732745418588,12.46708927,240.16,240.08,63.92253018]
[1732745418792,12.46708927,240.14,240.07,63.09180877]
[1732745419317,12.46708927,240.13,240.08,23.776884]
[1732745419498,12.46708927,240.13,240.07,50.6247195]
[1732745419696,12.46708927,240.14,240.07,50.6247195]
[1732745419910,12.46708927,240.16,240.09,12.46708927]
[1732745420810,12.46708927,240.16,240.1,23.776884]
[1732745421123,12.46708927,240.14,240.09,23.776884]
[1732745421994,12.46708927,240.1,240.04,22.6557]
[1732745422221,12.46708927,240.07,240.04,22.6557]
[1732745422522,12.46708927,240.08,240.02,50.6247195]
[1732745423493,20.0,240.19,240.02,54.7908195]
[1732745423699,12.46708927,240.15,240.08,12.46708927]
[1732745423928,12.46708927,240.15,240.08,23.776884]
[1732745424214,12.46708927,240.14,240.08,23.776884]
[1732745424418,12.46708927,240.15,240.08,36.24397327]
[1732745424715,12.46708927,240.17,240.1,23.776884]
[1732745425600,12.46708927,240.15,240.1,23.776884]
[1732745425813,12.46708927,240.11,240.04,63.56708927]
[1732745426804,12.46708927,240.11,240.04,67.73298927]
[1732745427197,12.46708927,240.11,240.05,23.776884]
[1732745430636,12.46708927,240.08,240.01,63.56708927]
[1732745430917,12.46708927,240.08,240.02,23.776884]
[1732745431899,12.46708927,240.1,240.03,12.46708927]
[1732745432220,12.46708927,240.1,240.04,23.776884]
[1732745433230,12.46708927,240.11,240.04,23.776884]
[1732745433416,12.46708927,240.11,240.04,24.60774704]
[1732745433723,12.46708927,240.11,240.04,37.07483631]
[1732745434326,12.46708927,240.11,240.04,13.29795231]
[1732745434520,12.46708927,240.11,240.04,12.46708927]
[1732745435926,12.46708927,240.11,240.05,23.776884]
[1732745436423,12.46708927,240.08,240.02,51.1]
[1732745436717,5.0,240.21,240.03,23.776884]
[1732745436718,12.46708927,240.1,240.03,23.776884]
[1732745437618,12.46708927,240.11,240.03,37.07488315]
[1732745437919,12.46708927,240.1,240.03,24.60779388]
[1732745438110,12.46708927,240.09,240.03,24.60779388]
[1732745438298,12.46708927,240.06,240.03,0.83090988]
[1732745438498,12.46708927,240.06,240.0,51.93101044]
[1732745438695,12.46708927,240.06,240.01,23.776884]
[1732745439517,12.46708927,240.07,240.01,23.776884]
[1732745440743,12.46708927,240.07,240.01,24.6078872]
[1732745441025,12.46708927,240.08,240.01,37.07497647]
[1732745441233,12.46708927,240.12,240.05,12.46708927]
[1732745441520,12.46708927,240.12,240.05,13.29791386]
[1732745442213,7.98976423,240.13,240.05,8.82058882]
[1732745442605,7.98976423,240.11,240.04,59.08976423]
[1732745442926,7.98976423,240.12,240.05,31.76664823]
[1732745443931,1.68888304,240.21,240.05,31.76664823]
[1732745444230,12.48401975,240.12,240.05,36.26090375]
[1732745444528,12.48401975,240.12,240.05,37.09172603]
[1732745444734,12.48401975,240.15,240.08,12.48401975]
[1732745445028,12.48401975,240.14,240.08,0.83070922]
[1732745445530,12.48401975,240.15,240.08,13.31472897]
[1732745446621,12.48401975,240.16,240.09,23.776884]
[1732745446825,12.48401975,240.16,240.09,36.26090375]
[1732745447031,12.48401975,240.16,240.09,37.09157179]
[1732745447909,12.48401975,240.16,240.09,36.26090375]
[1732745448328,12.48401975,240.16,240.08,12.48401975]
[1732745448525,12.48401975,240.15,240.08,12.48401975]
[1732745448731,12.48401975,240.16,240.09,12.48401975]
[1732745449513,12.48401975,240.15,240.08,12.48401975]
[1732745449926,12.48401975,240.17,240.1,23.776884]
[1732745450126,12.48401975,240.17,240.1,36.26090375]
[1732745450336,16.4814,240.22,240.11,12.48401975]
[1732745450534,12.48401975,240.19,240.12,36.26090375]
[1732745450834,28.98548957,240.28,240.13,36.26090375]
[1732745451134,12.48401975,240.2,240.13,87.36090375]
[1732745451513,12.48401975,240.21,240.13,87.36090375]
[1732745452414,12.48401975,240.22,240.14,12.48401975]
[1732745452736,12.48401975,240.21,240.13,87.36090375]
[1732745453702,28.98548957,240.28,240.14,12.48401975]
[1732745453903,12.48401975,240.24,240.17,12.48401975]
[1732745454102,12.48401975,240.23,240.16,23.776884]
[1732745454307,12.48401975,240.23,240.16,74.876884]
[1732745455433,12.48401975,240.21,240.16,51.1]
[1732745455725,12.48401975,240.2,240.14,23.776884]
[1732745456307,12.48401975,240.21,240.14,23.776884]
[1732745456938,12.48401975,240.21,240.14,36.26090375]
[1732745457636,12.33988957,240.28,240.14,36.26090375]
[1732745457637,12.48401975,240.22,240.15,12.48401975]
[1732745459053,12.48401975,240.21,240.14,87.36090375]
[1732745460325,12.48401975,240.2,240.14,74.876884]
[1732745460521,12.48401975,240.19,240.12,23.776884]
[1732745460853,12.48401975,240.17,240.12,74.876884]
[1732745461020,12.48401975,240.19,240.12,74.876884]
[1732745461615,12.48401975,240.18,240.12,74.876884]
[1732745461931,12.48401975,240.19,240.12,74.876884]
[1732745463444,12.48401975,240.19,240.12,87.36090375]
[1732745464242,7.98540169,240.19,240.12,82.86228569]
[1732745464748,7.98540169,240.19,240.12,74.876884]
[1732745465334,17.33988957,240.28,240.12,74.876884]
[1732745465533,7.98540169,240.18,240.12,74.876884]
[1732745465846,7.98540169,240.13,240.08,21.884]
[1732745466448,20.0,240.2,240.08,21.884]
[1732745466636,7.98540169,240.14,240.08,21.884]
[1732745467646,7.98540169,240.15,240.08,29.86940169]
[1732745467853,7.98540169,240.14,240.08,21.884]
[1732745469839,7.98540169,240.15,240.08,29.86940169]
[1732745470244,7.98540169,240.19,240.12,7.98540169]
[1732745470430,7.98540169,240.17,240.1,7.98540169]
[1732745470845,7.98540169,240.18,240.11,7.98540169]
[1732745471427,7.98540169,240.17,240.1,7.98540169]
[1732745473261,7.98540169,240.18,240.11,7.98540169]
[1732745474640,7.98540169,240.17,240.1,7.98540169]
[1732745474840,7.98540169,240.16,240.09,83.69300412]
[1732745475047,7.98540169,240.16,240.09,75.70760243]
[1732745475252,7.98540169,240.16,240.09,82.86228569]
[1732745475430,7.98540169,240.16,240.09,74.876884]
[1732745477630,7.98540169,240.16,240.1,7.98540169]
[1732745479350,15.4955,240.23,240.12,7.98540169]
[1732745479559,16.1347,240.29,240.15,23.776884]
[1732745479858,16.6381,240.34,240.18,20.0]
[1732745480149,16.6381,240.34,240.18,28.81579101]
[1732745480150,7.98540169,240.26,240.18,28.81579101]
[1732745480336,7.98540169,240.25,240.18,20.83038932]
[1732745480548,7.98540169,240.25,240.18,20.0]
[1732745481065,7.98540169,240.24,240.18,20.0]
[1732745481364,7.98540169,240.23,240.18,23.776884]
[1732745484347,7.98540169,240.19,240.11,23.776884]
[1732745484539,7.98540169,240.17,240.11,74.876884]
[1732745485234,7.98540169,240.18,240.11,74.876884]
[1732745485857,7.98540169,240.19,240.11,82.86228569]
[1732745486053,7.98540169,240.18,240.11,74.876884]
[1732745487348,7.98540169,240.19,240.11,82.86228569]
[1732745489153,7.98540169,240.14,240.1,51.1]
[1732745489366,7.98540169,240.13,240.08,21.884]
[1732745489936,7.98540169,240.12,240.08,15.8614]
[1732745490152,7.98540169,240.12,240.02,11.52600891]
[1732745490153,7.98540169,240.11,240.03,17.34223183]
[1732745490362,7.98540169,240.11,240.04,7.98540169]
[1732745490655,7.98540169,240.1,240.03,68.44223183]
[1732745490835,7.98540169,240.08,240.03,16.5114]
[1732745491461,7.98540169,240.09,240.03,16.5114]
[1732745491763,7.98540169,240.1,240.03,24.49680169]
[1732745492840,7.98540169,240.09,240.03,16.5114]
[1732745493042,7.98540169,240.1,240.03,24.49680169]
[1732745493761,7.98540169,240.07,239.98,23.776884]
[1732745493945,7.98540169,240.07,240.0,7.98540169]
[1732745495139,7.98540169,240.08,240.01,7.98540169]
[1732745495345,15.7697,240.14,240.02,7.98540169]
[1732745495346,7.98540169,240.09,240.02,7.98540169]
[1732745495942,7.98540169,240.1,240.03,7.98540169]
[1732745497438,15.7697,240.14,240.03,7.98540169]
[1732745497649,16.4457,240.2,240.07,7.98540169]
[1732745497849,16.4457,240.2,240.04,0.83095749]
[1732745497850,7.98540169,240.15,240.08,7.98540169]
[1732745498664,7.98540169,240.19,240.11,7.98540169]
[1732745499047,7.98540169,240.18,240.11,7.98540169]
[1732745499363,7.98540169,240.2,240.12,7.98540169]
[1732745499563,7.98540169,240.18,240.07,74.876884]
[1732745499867,7.98540169,240.17,240.1,7.98540169]
[1732745500546,23.06381413,240.26,240.11,7.98540169]
[1732745500747,7.98540169,240.19,240.11,59.08540169]
[1732745502754,7.98540169,240.14,240.07,59.08540169]
[1732745503462,36.94160676,240.24,240.07,59.08540169]
[1732745503463,7.98540169,240.15,240.07,59.08540169]
[1732745505550,7.98540169,240.16,240.08,7.98540169]
[1732745505850,7.98540169,240.13,240.07,51.1]
[1732745506070,7.98540169,240.12,240.05,22.6146]
[1732745506584,7.98540169,240.12,240.05,30.60000169]
[1732745506872,7.98540169,240.14,240.07,7.98540169]
[1732745507076,7.98540169,240.13,240.05,22.6146]
[1732745507248,7.98540169,240.13,240.05,30.60000169]
[1732745508169,28.776884,240.25,240.09,7.98540169]
[1732745508374,7.98540169,240.15,240.07,7.98540169]
[1732745508672,7.98540169,240.18,240.07,51.93073117]
[1732745508970,31.94160676,240.24,240.1,7.98540169]
[1732745509268,7.98540169,240.17,240.09,7.98540169]
[1732745509573,18.06381413,240.26,240.12,7.98540169]
[1732745509756,7.98540169,240.19,240.12,7.98540169]
[1732745510359,7.98540169,240.18,240.11,7.98540169]
[1732745512175,7.98540169,240.17,240.1,7.98540169]
[1732745512768,7.98540169,240.15,240.08,59.08540169]
[1732745512959,7.98540169,240.14,240.08,51.1]
[1732745513164,7.98540169,240.14,240.05,23.44534316]
[1732745513165,7.98540169,240.13,240.06,23.776884]
[1732745513387,7.98540169,240.13,240.05,22.6146]
[1732745513583,7.98540169,240.11,240.05,22.6146]
[1732745513784,7.98540169,240.12,240.05,30.60000169]
[1732745514087,7.98540169,240.13,240.05,30.60000169]
[1732745514878,7.98540169,240.13,240.06,7.98540169]
[1732745515053,7.98540169,240.14,240.06,7.98540169]
[1732745515679,7.98540169,240.11,240.05,22.6146]
[1732745515983,20.0,240.16,240.14,1.04105938]